Cogmind - Beta 15 @@@ ROGUE MODE // 2025.10.06 @ 12:38:58 Player: Dare Evans Result: Destroyed by F2-5JC(R) with Subdweller Machine Gun Performance ------------- Evolutions (0) 0 Regions Visited (2) 400 Robots Destroyed (22) 110 Value Destroyed (496) 496 Prototype IDs (2) 40 Alien Tech Used (0) 0 Bonus (0) 0 TOTAL SCORE: 1046 Bonus ------- None Cogmind --------- Core Integrity 0/250 Matter 288/300 Energy 248/250 System Corruption 0% Temperature Cool (0) Movement Core (500) Ox9 Location -10/Subcaves Parts ------- > --- POWER (1) -------- Ion Engine > --- PROPULSION (2) --- (None) > --- UTILITY (2) ------ Large Storage Unit Seismic Detector > --- WEAPON (2) ------- Heavy Battle Rifle > --- INVENTORY (15) --- Ion Engine Ion Engine Light Ion Engine Light Nuclear Core Light Nuclear Core Armored Wheel Armored Wheel Heat Sink Improved Heat Sink Medium Storage Unit Seismic Detector Medium Laser Light Assault Rifle Light Assault Rifle Mining Claw Peak State ------------ > --- POWER ------------ Ion Engine > --- PROPULSION ------- Armored Wheel Armored Wheel > --- UTILITY ---------- Large Storage Unit Seismic Detector > --- WEAPON ----------- Assault Rifle Heavy Battle Rifle > --- INVENTORY -------- Ion Engine Ion Engine Light Ion Engine Light Nuclear Core Light Nuclear Core Armored Wheel Armored Wheel Heat Sink Heat Sink Medium Storage Unit Seismic Detector Medium Laser Light Assault Rifle Light Assault Rifle Mining Claw [Rating: 14] Favorites ----------- Power Ion Engine Engine Ion Engine Power Core Light Nuclear Core Propulsion Light Treads Treads Light Treads Leg Aluminum Leg Wheel Armored Wheel Utility Seismic Detector Device Seismic Detector Storage Large Storage Unit Weapon Light Assault Rifle Ballistic Gun Light Assault Rifle Slashing Weapon Mining Claw Build | -11 -10 -10 ------- Run | Yrd Mat Sub Slots Evolved . | . . . Power . | . . . Propulsion . | . . . Utility . | . . . Weapon . | . . . Parts Attached 24 | 7 16 1 Power 6 | 1 5 . Engine 5 | 1 4 . Core 1 | . 1 . Reactor . | . . . Propulsion 6 | 2 4 . Treads 2 | 2 . . Leg 2 | . 2 . Wheel 2 | . 2 . Hover . | . . . Flight . | . . . Utility 5 | 2 3 . Device 2 | 1 1 . Storage 3 | 1 2 . Processor . | . . . Hackware . | . . . Protection . | . . . Artifact . | . . . Weapon 7 | 2 4 1 Energy Gun . | . . . Energy Cannon . | . . . Ballistic Gun 6 | 2 3 1 Ballistic Cannon . | . . . Launcher . | . . . Special Weapon . | . . . Impact Weapon . | . . . Slashing Weapon 1 | . 1 . Piercing Weapon . | . . . Special Melee Weapon . | . . . Unidentified Prototypes . | . . . Parts Lost 4 | . 1 3 Power . | . . . Propulsion 3 | . 1 2 Utility . | . . . Weapon 1 | . . 1 Highest Loss Streak 3 | . 1 3 To Critical Strikes . | . . . Average Backups 9 | 3 9 14 Power 2 | . 2 5 Propulsion 2 | 1 2 2 Utility 2 | . 2 4 Weapon 2 | . 2 3 Tool/Special . | . . . Unused Backups 11 | . 3 8 Power 1 | . . 1 Propulsion 5 | . 3 2 Utility 4 | . . 4 Weapon 1 | . . 1 Tool/Special . | . . . Average Slot Usage (%) 99 | . 99 99 Engine 14 | . 14 14 Treads 13 | . 17 . Leg 5 | . 6 . Wheel 8 | . 3 28 Device 14 | . 14 14 Storage 14 | . 14 14 Ballistic Gun 26 | . 25 27 Slashing Weapon 1 | . 2 . Peak Build Rating 14 | 7 12 14 Average Rating 8 | 5 7 13 On Entrance 6 | . 7 11 Naked Turns . | . . . Heaviest Build 32 | 14 30 32 Greatest Support 40 | 40 40 24 Greatest Overweight (x) 9 | . 9 1 Average Overweight (x) . | . . 1 Largest Inventory Capacity 15 | 8 15 15 Average Capacity 12 | 7 12 15 Most Carried 15 | 4 15 15 Average Carried 9 | 3 9 14 Final Capacity 15 | 8 15 15 Final Carried 15 | 4 14 15 Class Distribution -------------------- 100% | Mutant Dominant Class ---------------- Mutant | -10/Materials Mutant | -10/Subcaves Resources | -11 -10 -10 ----------- Run | Yrd Mat Sub Matter Collected 796 | 298 429 69 Remotely . | . . . Salvage Created 614 | 67 432 115 Parts 40 | 6 26 8 Haulers Intercepted . | . . . Recyclers Shooed 1 | . 1 . Parts Field Recycled . | . . . Retrieved Matter . | . . . Parts Self-Destructed 5 | . . 5 Prevented . | . . . Kills | -11 -10 -10 ------- Run | Yrd Mat Sub Combat Hostiles Destroyed 19 | . 16 3 Guns 19 | . 16 3 Classes Destroyed 4 | 1 2 1 Tunneler 3 | 3 . . Swarmer 9 | . 9 . Grunt 9 | . 7 2 Subdweller 1 | . . 1 Best Kill Streak 3 | 1 3 2 Combat Bots Only 3 | . 3 2 Max Kills in Single Turn 1 | 1 1 1 Gunslinging . | . . . Exploded . | . . . Melee . | . . . Uniques/NPCs Destroyed . | . . . Combat | -11 -10 -10 -------- Run | Yrd Mat Sub Hostile Shots Fired 142 | . 116 26 Missed 37 | . 32 5 Hits 105 | . 84 21 Projectile 105 | . 84 21 Damage Taken 1267 | . 851 416 Core 254 | . 178 76 Absorbed by Shields . | . . . Regen/Repaired (Parts) 12 | . 12 . Core Remaining (%) 100 | 100 . . Volleys Fired 80 | 7 58 15 Largest 2 | 2 2 2 Hottest 53 | 40 40 53 Shots Fired 151 | 14 114 23 Gun 151 | 14 114 23 Cannon . | . . . Launcher . | . . . Special . | . . . Kinetic 151 | 14 114 23 Thermal . | . . . Explosive . | . . . Electromagnetic . | . . . Robot Hit Streak 8 | 5 8 8 Robot Miss Streak 7 | 1 7 2 Penetration Max . | . . . Secondary Targets 3 | . 3 . Max Gunslinging Chain 1 | . 1 . Shots Hit Robots 91 | 10 65 16 Core Hits 46 | 5 34 7 Critical Kills . | . . . Critical Parts Destroyed 1 | 1 . . Critical Strikes 1 | 1 . . Destroy 1 | 1 . . Melee Attacks 20 | . 20 . Impact . | . . . Slashing 20 | . 20 . Piercing . | . . . Sneak Attacks . | . . . Combat Hostiles . | . . . Follow-up Attacks . | . . . Damage Inflicted 1081 | 122 645 314 Guns 1078 | 122 642 314 Cannons . | . . . Explosions . | . . . Melee . | . . . Ramming 3 | . 3 . Kinetic 1078 | 122 642 314 Thermal . | . . . Explosive . | . . . Electromagnetic . | . . . Impact . | . . . Slashing . | . . . Piercing . | . . . Highest Corruption . | . . . Average Corruption . | . . . Corruption Purged . | . . . Corruption Blocked . | . . . Overload Shots . | . . . Overflow Damage . | . . . Projectiles . | . . . Explosions . | . . . Melee . | . . . Knockbacks . | . . . Impact . | . . . Kinetic . | . . . Secondary . | . . . Self-Inflicted Damage . | . . . Shots . | . . . Rammed 1 | . 1 . Targets Rammed 2 | . 2 . Kicked 1 | . 1 . Crushed . | . . . Highest Temperature 12 | . 12 . Average Temperature 8 | . 8 . Received Heat Transfer 219 | . 129 90 Siege Activations . | . . . Martial Activations . | . . . Shielding Activations . | . . . Robots Disrupted . | . . . Combat Hostiles . | . . . Robots Corrupted . | . . . Combat Hostiles . | . . . Parts Fried . | . . . Impact Corruptions . | . . . Robots Melted . | . . . Combat Hostiles . | . . . Parts Melted . | . . . Heat Transferred . | . . . Parts Sabotaged . | . . . Parts Stolen . | . . . Parts Stripped . | . . . Power Chain Reactions . | . . . Alert | -11 -10 -10 ------- Run | Yrd Mat Sub Maximum Alert Level 1 | . 1 . Low Security (%) 72 | 100 67 . Level 1 27 | . 32 . Level 2 . | . . . Level 3 . | . . . Level 4 . | . . . Level 5 . | . . . High Security . | . . . Max Security . | . . . Peak Influence 238 | 5 238 . Initial . | . . . Average 96 | . 114 . Influence Increases 567 | 15 502 50 Destroy 0b10 Robot/C 360 | . 320 40 Destroy 0b10 Robot/NC 15 | 15 . . Destroy Leader 80 | . 70 10 Successful Hack 14 | . 14 . Destroy Structure 8 | . 8 . Lose Combat Pursuer 90 | . 90 . Influence Decreases 567 | 15 306 246 Entered New Map 95 | . . 95 Time Decay 442 | 15 296 131 Lost Part 30 | . 10 20 Squads Dispatched 3 | . 3 . Investigation . | . . . Extermination . | . . . Reinforcement 3 | . 3 . Assault . | . . . Garrison . | . . . Intercept . | . . . Searches Triggered . | . . . Construction Impeded . | . . . Haulers Reinforced . | . . . Active Scanning Responses . | . . . Cargo Convoy Interrupts . | . . . Stealth | -11 -10 -10 --------- Run | Yrd Mat Sub Distress Signals 3 | . 3 . Communications Jammed . | . . . Distress Signals . | . . . Times Spotted 35 | . 30 5 Peak Tracking Total 5 | . 5 2 Tactical Retreats 4 | . 4 . Traps | -11 -10 -10 ------- Run | Yrd Mat Sub Traps Triggered 2 | . 2 . Indirectly . | . . . Trap Hack Attempts . | . . . Triggered . | . . . Disarmed . | . . . Reprogrammed . | . . . Reused . | . . . Traps Extracted . | . . . Installed . | . . . Triggered . | . . . Machines | -11 -10 -10 ---------- Run | Yrd Mat Sub Machines Disabled . | . . . Max in Single Turn . | . . . Machines Repaired . | . . . Machines Dismantled . | . . . Machines Sabotaged . | . . . Overloaded Fab Kills . | . . . Hacking | -11 -10 -10 --------- Run | Yrd Mat Sub Machines Accessed 6 | . 5 1 Terminals 4 | . 4 . Fabricators . | . . . Repair Stations 1 | . 1 . Recycling Units . | . . . Scanalyzers . | . . . Garrison Access . | . . . Total Hacks 18 | . 13 5 Successful 11 | . 6 5 Failed 7 | . 7 . Catastrophic 2 | . 2 . Database Lockouts . | . . . Manual . | . . . Terminals 11 | . 11 . Fabricators . | . . . Repair Stations 2 | . 2 . Recycling Units . | . . . Scanalyzers . | . . . Garrison Access . | . . . Terminal Hacks 9 | . 4 5 Record 5 | . . 5 Robot Analysis 1 | . 1 . Prototype ID Bank 1 | . 1 . Emergency Access Points 2 | . 2 . Fabricator Hacks . | . . . Repair Station Hacks 2 | . 2 . Scan Component 1 | . 1 . Repair 1 | . 1 . Recycling Unit Hacks . | . . . Scanalyzer . | . . . Garrison Access Hacks . | . . . Unauthorized Hacks . | . . . Terminals . | . . . Fabricators . | . . . Repair Stations . | . . . Recycling Units . | . . . Scanalyzers . | . . . Garrison Access . | . . . Data Cores Recovered . | . . . Used . | . . . Hacking Detections 5 | . 5 . Full Trace Events 1 | . 1 . Feedback Events . | . . . Feedback Blocked . | . . . Robot Schematics Acquired . | . . . Robots Built . | . . . Authchips . | . . . Time . | . . . Total Robot Build Rating . | . . . Part Schematics Acquired . | . . . Parts Built . | . . . Authchips . | . . . Time . | . . . Total Part Build Rating . | . . . Parts Repaired 1 | . 1 . Time 26 | . 26 . Parts Recycled . | . . . Recycled Matter . | . . . Retrieved Matter . | . . . Retrieved Components . | . . . Parts Scanalyzed . | . . . Part Schematics Acquired . | . . . Parts Damaged . | . . . Bothacking | -11 -10 -10 ------------ Run | Yrd Mat Sub Used RIF Installer . | . . . Robots Hacked . | . . . Non-combat . | . . . Combat . | . . . Robot Hacks Applied . | . . . Relay Couplers Released . | . . . Fabnet Peak Effective % . | . . . Robots Rewired . | . . . Allies Hacked . | . . . Hacks Repelled . | . . . Allies | -11 -10 -10 -------- Run | Yrd Mat Sub Total Allies . | . . . Largest Group . | . . . Highest-Rated Group . | . . . Highest-Rated Ally . | . . . Total Orders . | . . . Ally Attacks . | . . . Total Damage . | . . . Kills . | . . . Allies Corrupted . | . . . Allies Melted . | . . . Intel | -11 -10 -10 ------- Run | Yrd Mat Sub Active Infowar (turns) 1438 | 22 1134 282 Seismic 1438 | 22 1134 282 Robot Analysis Total 1 | . 1 . Derelict Logs Recovered . | . . . Drone Launches . | . . . Drone Recoveries . | . . . Exploration | -11 -10 -10 ------------- Run | Yrd Mat Sub Turns Passed 1627 | 211 1134 282 Spaces Moved 832 | 109 502 221 Core 5 | 4 1 . Treads 386 | 105 281 . Legs 116 | . 116 . Wheels 325 | . 104 221 Hover . | . . . Flight . | . . . Fastest Speed 50 | 50 105 105 Average Speed 142 | 155 156 105 Slowest Speed 500 | 160 500 105 Overloaded Moves . | . . . Propulsion Burnouts . | . . . Robots Hopped . | . . . Potential Cave-ins . | . . . Cave-ins Triggered . | . . . Exploration Rate (%) 37 | 5 84 24 Regions Visited 2 Branch Regions 1 Pre-discovered Areas 1 | . . 1 Known Exits Taken . | . . . Unknown Exits Taken 2 | 1 1 . Scrap Searched . | . . . Spaces Dug 8 | . 8 . Terrain Destroyed 8 | . 8 . Melee 8 | . 8 . Projectile . | . . . AOE . | . . . Terrain Rammed . | . . . Walls Destroyed . | . . . Machines Disabled . | . . . Actions | -11 -10 -10 --------- Run | Yrd Mat Sub Total 1091 | 134 707 250 Wait 92 | 8 73 11 Move 830 | 108 501 221 Hop . | . . . Pick Up 19 | 4 14 1 Fast Attach 11 | 7 4 . Attach 2 | . 2 . Detach . | . . . Swap 23 | . 22 1 Drop 12 | . 11 1 Fire 80 | 7 58 15 Melee 20 | . 20 . Ram . | . . . Kick 1 | . 1 . Crush 1 | . 1 . Escape Stasis . | . . . Rewire . | . . . Trap . | . . . Miscellaneous . | . . . Route ------- -11/Scrapyard -10/Materials (discovered 4 exits: [*Mat x3] / *Sub) -10/Subcaves (discovered 1 exit: [*Mat]) History --------- Turn | Location | Event 7 | -11/Scrapyard | Discovered new exit (range 14) 212 | -11/Scrapyard | Entered Materials 281 | -10/Materials | Discovered new exit (range 5) 311 | -10/Materials | Build established: Mutant 517 | -10/Materials | Discovered new exit (range 3) 812 | -10/Materials | Derelicts attacked the area 1009 | -10/Materials | Discovered new exit (range 3) 1169 | -10/Materials | Repaired Seismic Detector 1232 | -10/Materials | Core integrity fell below 50% 1252 | -10/Materials | Discovered new exit (range 15) 1346 | -10/Materials | Entered Subcaves 1347 | -10/Subcaves | Approached by a straggling Scientist 1348 | -10/Subcaves | Shifting Twisted Machinery released Sub. Laser 1350 | -10/Subcaves | Shifting Twisted Machinery released Hvy. Battle Rifle 1401 | -10/Subcaves | Visited Clippyterm 1404 | -10/Subcaves | Learned Factory trap positions 1404 | -10/Subcaves | Learned location of Section 7 (-2) 1551 | -10/Subcaves | Shifting Twisted Machinery released Spk. Treads 1551 | -10/Subcaves | Discovered new exit (range 10) 1552 | -10/Subcaves | Shifting Twisted Machinery released Sub. Beam Cannon 1592 | -10/Subcaves | Ambushed by Subdwellers from Twisted Machinery 1593 | -10/Subcaves | Core integrity fell below 20% 1628 | -10/Subcaves | Destroyed by F2-5JC(R) with Subdweller Machine Gun Last Messages --------------- here" 01475_ EJ-JBY(R) destroyed. 01479_ Acquired 6 matter. H8-1A3(c): "I think it's somewhere southwest of here" 01534_ MU-RAJ(u) tweaks Twisted Machinery. H8-1A3(c): "I think it's somewhere southwest of here" Spk. Treads falls loose from the Twisted Machinery. 01551_ EXIT=FOUND Sub. Beam Cannon falls loose from the Twisted Machinery. 01558_ MU-RAJ(u) tweaks Twisted Machinery. 01592_ F2-5JC(R) emerges from the Twisted Machinery. H8-1A3(c): "I think it's somewhere southwest of here" 01613_ Assault Rifle destroyed. 01624_ Arm. Wheel destroyed. Map ----- +----------------------------------------------------+ | #????????????????????????????????????????????????# | | ##???????????????????????????????????????????????# | | ###?????????????????????????????????????????????# | | #?????????????????????????????????????????????# | | ##????????????????????????????????????????????# | | # #????????????????????????????????????????????# | | # #????????????????????????????????????????????? | | # #????????????????????????????????????????????? | | #????????????????????????????????????????????? | | # #????????????????????????????????????????????? | | #####????????????????????????????????????????????? | | ?????????????????????????????????????????????###?? | | ???????????????????????????????????????????## ##? | | ??????????????????????????????????????????## #? | | ??????????????????????######?############## #?? | | ?????????????????????## ### # # # # #???? | | ?????????????????????# #???? | | ????????????????????## "" ##### | | ????????????????????# #### ##### # < # | | ??????????????????## ##?#####??"###""]" | | ??????????????????## #????## "?###"" | | ???????????????????### ##?? "?"""""" # | | ##?????????????????##### ## ""?"""""# ## | | ##????????????????### ""?"###"# #? | | ??????????????????# R ## "" ##"# ## | | ??????????????????# R@ ##?? ####" =" ## | | ??????????????????# #####???? #??### ## | | ??????????????????# ##????????? ?????# # | | ??????????????????# ##??????????? ??? ## # | | ??????????????????# #?????????????#??# # ?##### | | ????????????????? #????????????????#?# ??????? | | ??????????????? ??????????????????##??????? | | ??????????????## ?????????????????????????? | | ???????????????# ????????????????????????? | | ???????????????## ????????????????????????? | | ????????????????# ???????????????????????? | | ???????????????? ??????????????????????? | | ??????????????? ?????????????????????? | | ??????????????? "## ## ?????????????????????? | | ??????????????" "?#####?# ????????????????????? | | ?????????????? ????????? ##???????????????????? | | ?????????????? ??????????? ?????????????????????? | | ?????????????????????????????????????????????????? | | ?????????????????????????????????????????????????? | | ?????????????????????????????????????????????????? | | ?????????????????????????????????????????????????? | | ?????????????????????????????????????????????????? | | ?????????????????????????????????????????????????? | | ?????????????????????????????????????????????????? | | ?????????????????????????????????????????????????? | +----------------------------------------------------+ Best States ------------- Heat Dissipation 25 Energy Generation 10 Energy Capacity 250 Matter Stores 300 Matter Capacity 300 Sight Range 16 Terrain Scan Density 10 Evasion (%) 40 Recoil Reduction 2 Item Schematics ----------------- None Robot Schematics ------------------ None Fabricated ------------ Nothing Repaired ---------- Seismic Detector | 40% | -10/Materials Alien Tech Used ----------------- None Achievements -------------- None Challenges ------------ None Game ------ Seed GammaRelayTelecube Manual? 0 Play Time 00:23:21 Cumulative 17.0 hours Start 2025.10.06 @ 12:15:26 End 2025.10.06 @ 12:38:58 Sessions 1 Manual Loads 0 Difficulty Rogue Special Mode None Game No. 18 Rogue 18 Adventurer 0 Explorer 0 Win Type - Total 0 Types 0/0/0/0/0/0/0/0/0/0 Lore% 9 Gallery% 11 Achievement% 14 Wizard Run 0 Options --------- Layout 2 ASCII 0 Keyboard 0 Movement Numpad Keybinds 0 Fullscreen 2 Font 24/Terminus Map View 50x44 Zoom Use 0% Tactical HUD 1 Map Filters NONE Filters NONE Steam 1 RUN: 7011f510-9d6d-42c6-9699-ad189141a518